fUST/lending_fUST_20250128
["ID","MTS","AMOUNT","RATE_DAILY","PERIOD"]
[350613036,1737994241457,-1755.22,0.00020823,2]
[350613038,1737994241466,-500.0,0.00020823,2]
[350613040,1737994241476,-500.0,0.00020823,2]
[350613042,1737994241485,-1755.22,0.0002096,2]
[350613044,1737994241494,-246.09660356,0.0002096,2]
[350613047,1737994241508,-500.0,0.0002096,2]
[350613048,1737994241517,-3000.0,0.00021,2]
[350613050,1737994241527,-5125.6796381,0.00021,2]
[350613052,1737994241536,-4326.884502,0.0002101,2]
[350613054,1737994241546,-1755.22,0.00021097,2]
[350613057,1737994241556,-500.0,0.00021097,2]
[350613059,1737994241566,-1755.22,0.00021234,2]
[350613061,1737994241575,-561.03438744,0.00021234,2]
[350613063,1737994241584,-1755.22,0.00021371,2]
[350613065,1737994241593,-1755.22,0.00021508,2]
[350613067,1737994241602,-234.837,0.0002152,2]
[350613069,1737994241612,-8725.0,0.000216,4]
[350613071,1737994241622,-1755.22,0.00021645,2]
[350613073,1737994241631,-160.0,0.00021683,3]
[350613074,1737994241640,-1755.22,0.00021782,2]
[350613077,1737994241654,-500.0,0.00021784,2]
[350613079,1737994241663,-500.0,0.00021784,2]
[350613080,1737994241672,-151.0,0.00021787,7]
[350613083,1737994241682,-1755.22,0.00021919,2]
[350613085,1737994241692,-1000.0,0.00022,10]
[350613087,1737994241702,-1755.3842,0.00022056,2]
[350613089,1737994241711,-151.0,0.00022073,7]
[350613090,1737994241722,-151.0,0.000222,6]
[350613093,1737994241732,-580.73,0.000223,2]
[350613095,1737994241743,-844.32119174,0.000223,40]
[350613096,1737994241753,-180.81588462,0.00022356,2]
[350613098,1737994241763,-151.0,0.0002236,7]
[350613101,1737994241773,-151.0,0.000224,7]
[350613103,1737994241782,-151.0,0.000225,8]
[350613104,1737994241792,-300.0,0.000225,10]
[350613106,1737994241801,-153.08,0.000225,31]
[350613108,1737994241810,-153.08,0.000225,31]
[350613110,1737994241820,-153.08,0.000225,31]
[350613112,1737994241829,-153.08,0.000225,31]
[350613114,1737994241839,-153.08,0.000225,31]
[350613116,1737994241849,-153.08,0.000225,31]
[350613118,1737994241859,-153.08,0.000225,31]
[350613120,1737994241870,-418.09024108,0.00022546,7]
[350613122,1737994241880,-200.0,0.0002259,9]
[350613124,1737994241890,-1000.0,0.000226,61]
[350613126,1737994241901,-1000.0,0.000226,7]
[350613129,1737994241912,-151.565558,0.00022602,7]
[350613131,1737994241922,-151.0,0.00022628,7]
[350613133,1737994241931,-151.0,0.00022628,7]
[350613135,1737994241940,-152.46889,0.00022628,7]
[350613136,1737994241949,-261.672544,0.00022628,7]
[350613138,1737994241958,-219.058254,0.00022628,7]
[350613140,1737994241973,-219.058254,0.00022628,7]
[350613142,1737994241983,-219.058254,0.00022628,7]
[350613144,1737994241993,-219.058254,0.00022628,7]
[350613146,1737994242002,-219.058254,0.00022628,7]
[350613148,1737994242013,-219.058254,0.00022628,7]
[350613150,1737994242023,-219.058254,0.00022628,7]
[350613153,1737994242033,-219.058254,0.00022628,7]
[350613155,1737994242044,-219.058254,0.00022628,7]
[350613156,1737994242053,-219.058254,0.00022628,7]
[350613157,1737994242063,-219.058254,0.00022628,7]
[350613158,1737994242073,-219.058254,0.00022628,7]
[350613159,1737994242082,-219.058254,0.00022628,7]
[350613160,1737994242093,-219.058254,0.00022628,7]
[350613161,1737994242103,-219.058254,0.00022628,7]
[350613162,1737994242113,-219.058254,0.00022628,7]
[350613163,1737994242123,-219.058254,0.00022628,7]
[350613164,1737994242132,-219.058254,0.00022628,7]
[350613165,1737994242141,-219.058254,0.00022628,7]
[350613168,1737994242242,-219.058255,0.00022628,7]
[350613170,1737994242252,-151.0,0.00022628,7]
[350613172,1737994242262,-151.0,0.00022628,7]
[350613173,1737994242272,-151.0,0.00022628,7]
[350613174,1737994242282,-151.0,0.00022628,7]
[350613176,1737994242292,-151.0,0.00022628,7]
[350613178,1737994242301,-151.0,0.00022628,7]
[350613180,1737994242311,-261.0,0.00022628,7]
[350613182,1737994242321,-20679.74438532,0.00022634,5]
[350613184,1737994242331,-11398.05835314,0.00022634,5]
[350613186,1737994242340,-151.0,0.00022634,7]
[350613188,1737994242350,-202182.95127568,0.00022634,61]
[350613191,1737994242364,-3063.62956833,0.00022634,61]
[350613193,1737994242375,-3134.78542588,0.00022634,61]
[350613195,1737994242387,-1010.0,0.00022634,61]
[350613197,1737994242399,-249.993024,0.00022634,61]
[350613200,1737994242410,-100230.0,0.00022634,61]
[350613202,1737994242422,-13483.44110971,0.00022634,61]
[350613300,1737994243738,-4831.7400571,0.00022634,61]
[350613313,1737994243845,-1035804.35506837,0.00022634,61]
[350613593,1737994246694,-500.0,0.00018905,2]
[350613595,1737994246704,-500.0,0.00019042,2]
[350613597,1737994246713,-500.0,0.00019179,2]
[350613599,1737994246725,-500.0,0.00019316,2]
[350613601,1737994246734,-500.0,0.00019453,2]
[350613603,1737994246743,-500.0,0.0001959,2]
[350613605,1737994246753,-500.0,0.00019727,2]
[350613607,1737994246763,-1603.28902239,0.00022634,61]
[350613615,1737994246824,-5566.60285636,0.00022634,61]
[350614609,1737994372612,165.280825,0.00013973,2]
[350615282,1737995226141,-172.78556904,0.00016273,2]
[350615283,1737995226163,-156.58499453,0.00016437,2]
[350615284,1737995226186,-300.0,0.00016437,2]
[350615285,1737995226208,-500.0,0.00016438,2]
[350615286,1737995226230,-500.0,0.00016438,2]
[350615287,1737995226257,-500.0,0.00016438,2]
[350615288,1737995226280,-500.0,0.00016438,2]
[350615289,1737995226302,-500.0,0.00016438,2]
[350615290,1737995226324,-500.0,0.00016438,2]
[350615291,1737995226352,-500.0,0.00016438,2]
[350615292,1737995226373,-3.65788455,0.00016438,2]
[350615294,1737995233102,-496.34211545,0.00016438,2]
[350615295,1737995233126,-249.36540535,0.00016438,2]
[350615296,1737995233148,-500.0,0.00016575,2]
[350615297,1737995233170,-272.82648727,0.00016575,2]
[350615298,1737995252100,-227.17351273,0.00016575,2]
[350615299,1737995252122,-500.0,0.00016575,2]
[350615300,1737995252144,-248.25652742,0.00016575,2]
[350615301,1737995252166,-423.60740331,0.00016575,2]
[350615308,1737995346155,-425.0,0.000165,2]
[350615309,1737995346180,-76.39259669,0.00016575,2]
[350615310,1737995346205,-500.0,0.00016575,2]
[350615311,1737995346231,-500.0,0.00016575,2]
[350615312,1737995346256,-300.0,0.00016706,2]
[350615313,1737995346283,-9016.0064925,0.00016707,2]
[350615314,1737995346310,-500.0,0.00016712,2]
[350615315,1737995346336,-543.66,0.00016712,2]
[350615316,1737995346364,-500.0,0.00016712,2]
[350615317,1737995346390,-500.0,0.00016712,2]
[350615318,1737995346414,-293.2204986,0.00016849,2]
[350615319,1737995346439,-500.0,0.00016849,2]
[350615320,1737995346464,-500.0,0.00016927,2]
[350615321,1737995346490,-1812.424386,0.00016928,2]
[350615322,1737995346515,-500.0,0.00016986,2]
[350615323,1737995346540,-500.0,0.00017064,2]
[350615324,1737995346564,-500.0,0.00017123,2]
[350615325,1737995346593,-500.0,0.00017201,2]
[350615326,1737995346619,-291.9,0.0001726,2]
[350615327,1737995346643,-500.0,0.00017338,2]
[350615328,1737995346665,-500.0,0.00017475,2]
[350615329,1737995346687,-500.0,0.00017612,2]
[350615330,1737995346710,-189.29953769,0.00017749,2]
[350615331,1737995365123,-500.0,0.00016927,2]
[350615332,1737995365146,-500.0,0.00016927,2]
[350615333,1737995365167,-500.0,0.00017064,2]
[350615334,1737995365191,-500.0,0.00017064,2]
[350615335,1737995365215,-500.0,0.00017201,2]
[350615336,1737995365237,-500.0,0.00017201,2]
[350615337,1737995365258,-500.0,0.00017338,2]
[350615338,1737995365281,-500.0,0.00017338,2]
[350615339,1737995365305,-500.0,0.00017475,2]
[350615340,1737995365329,-500.0,0.00017475,2]
[350615342,1737995365352,-500.0,0.00017612,2]
[350615343,1737995365378,-310.70046231,0.00017749,2]
[350615344,1737995365402,-500.0,0.00017749,2]
[350615345,1737995365424,-500.0,0.00017886,2]
[350615346,1737995365447,-500.0,0.00017886,2]
[350615347,1737995365470,-419.70525396,0.00018023,2]
[350615348,1737995365494,-500.0,0.00018023,2]
[350615349,1737995365516,-500.0,0.0001816,2]
[350615350,1737995365538,-500.0,0.00018297,2]
[350615351,1737995365560,-500.0,0.00018434,2]
[350615352,1737995365583,-500.0,0.00018571,2]
[350615353,1737995365606,-150.68,0.000186,2]
[350615354,1737995365628,-500.0,0.00018708,2]
[350615355,1737995365650,-183.55737745,0.00018803,2]
[350615356,1737995365671,-177.58086249,0.00018804,2]
[350615358,1737995365695,-500.0,0.00018845,2]
[350615359,1737995365714,-191.80705221,0.00018894,2]
[350615360,1737995365734,-212.31408229,0.000189,2]
[350615361,1737995365755,-500.0,0.00018903,2]
[350615362,1737995365777,-500.0,0.00018903,2]
[350615363,1737995365797,-500.0,0.00018903,2]
[350615364,1737995365818,-500.0,0.00018903,2]
[350615365,1737995365839,-500.0,0.00018903,2]
[350615366,1737995365866,-500.0,0.00018903,2]
[350615367,1737995365888,-500.0,0.00018903,2]
[350615368,1737995365911,-500.0,0.00018903,2]
[350615369,1737995365932,-500.0,0.00018903,2]
[350615370,1737995365955,-500.0,0.00018903,2]
[350615371,1737995365977,-500.0,0.00018903,2]
[350615372,1737995365999,-500.0,0.00018903,2]
[350615373,1737995366019,-500.0,0.00018903,2]
[350615374,1737995366039,-500.0,0.00018903,2]
[350615375,1737995366061,-230.46292157,0.00018903,2]
[350615376,1737995366081,-474.55646798,0.00018903,2]
[350615433,1737995433041,-500.0,0.00016927,2]
[350615434,1737995433050,-500.0,0.00016927,2]
[350615435,1737995433060,-500.0,0.00016927,2]
[350615436,1737995433070,-555.6779912,0.00016927,2]
[350615437,1737995433081,-500.0,0.00016927,2]
[350615438,1737995433092,-500.0,0.00016927,2]
[350615439,1737995433102,-500.0,0.00016927,2]
[350615440,1737995433112,-563.05,0.00016927,2]
[350615441,1737995433122,-500.0,0.00016927,2]
[350615442,1737995433132,-323.68063854,0.00017064,2]
[350615443,1737995433144,-176.31936146,0.00017064,2]
[350615444,1737995433155,-500.0,0.00017064,2]
[350615445,1737995433171,-500.0,0.00017064,2]
[350615446,1737995433181,-500.0,0.00017064,2]
[350615448,1737995433191,-563.05,0.00017064,2]
[350615450,1737995433201,-500.0,0.00017064,2]
[350615452,1737995433211,-500.0,0.00017201,2]
[350615453,1737995433221,-500.0,0.00017201,2]
[350615454,1737995433231,-604.05992469,0.00017201,2]
[350615455,1737995433240,-563.05,0.00017201,2]
[350615456,1737995433250,-452.6,0.00017201,2]
[350615457,1737995433261,-500.0,0.00017338,2]
[350615458,1737995433270,-500.0,0.00017338,2]
[350615459,1737995433280,-563.05,0.00017338,2]
[350615460,1737995433290,-500.0,0.00017475,2]
[350615461,1737995433300,-500.0,0.00017475,2]
[350615462,1737995433313,-563.05,0.00017475,2]
[350615463,1737995433322,-349.94444331,0.00017612,2]
[350615464,1737995433339,-150.05555669,0.00017612,2]
[350615465,1737995433350,-500.0,0.00017612,2]
[350615466,1737995433359,-563.05,0.00017612,2]
[350615467,1737995433369,-167.1,0.00017749,2]
[350615468,1737995433378,-500.0,0.00017749,2]
[350615469,1737995433389,-563.05,0.00017749,2]
[350615470,1737995433399,-500.0,0.00017886,2]
[350615471,1737995433408,-563.05,0.00017886,2]
[350615472,1737995433419,-500.0,0.00018023,2]
[350615473,1737995433429,-563.05,0.00018023,2]
[350615474,1737995433438,-294.25544331,0.0001816,2]
[350615475,1737995433450,-205.74455669,0.0001816,2]
[350615476,1737995433460,-563.05,0.0001816,2]
[350615477,1737995433470,-500.0,0.00018297,2]
[350615478,1737995433480,-563.05,0.00018297,2]
[350615479,1737995433489,-500.0,0.00018434,2]
[350615480,1737995433499,-563.05,0.00018434,2]
[350615481,1737995433509,-381.45,0.00018571,2]
[350615482,1737995433519,-563.05,0.00018571,2]
[350615483,1737995433529,-563.05,0.00018708,2]
[350615484,1737995433539,-563.05,0.00018845,2]
[350615485,1737995433550,-500.0,0.00018902,2]
[350615486,1737995433560,-500.0,0.00018902,2]
[350615487,1737995433570,-25.44353202,0.00018903,2]
[350615488,1737995433579,-500.0,0.00018903,2]
[350615489,1737995433589,-500.0,0.00018903,2]
[350615490,1737995433599,-500.0,0.00018903,2]
[350615491,1737995433609,-501.59740139,0.00018903,2]
[350615492,1737995433618,-500.0,0.00018903,2]
[350615493,1737995433627,-500.0,0.00018903,2]
[350615494,1737995433637,-176.77980324,0.00018903,2]
[350615495,1737995433646,-500.0,0.00018903,2]
[350615496,1737995433655,-500.0,0.00018903,2]
[350615497,1737995433667,-500.0,0.00018903,2]
[350615498,1737995433677,-500.0,0.00018903,2]
[350615499,1737995433687,-500.0,0.00018903,2]
[350615500,1737995433697,-500.0,0.00018903,2]
[350615501,1737995433708,-834.11,0.00018903,2]
[350615502,1737995433717,-500.0,0.00018903,2]
[350615503,1737995433727,-500.0,0.00018903,2]
[350615504,1737995433736,-500.0,0.00018903,2]
[350615505,1737995433746,-500.0,0.00018903,2]
[350615506,1737995433873,-500.0,0.00018903,2]
[350615507,1737995433883,-500.0,0.00018903,2]
[350615508,1737995433893,-500.0,0.00018903,2]
[350615509,1737995433903,-500.0,0.00018903,2]
[350615510,1737995433915,-500.0,0.00018903,2]
[350615511,1737995433925,-1412.48,0.00018903,2]
[350615512,1737995433935,-570.36,0.00018903,2]
[350615513,1737995433944,-3822.54,0.00018903,2]
[350615514,1737995433954,-500.0,0.00018903,2]
[350615515,1737995433964,-500.0,0.00018903,2]
[350615516,1737995433974,-500.0,0.00018903,2]
[350615517,1737995433983,-500.0,0.00018903,2]
[350615518,1737995433993,-500.0,0.00018903,2]
[350615519,1737995434002,-500.0,0.00018903,2]
[350615520,1737995434012,-500.0,0.00018903,2]
[350615521,1737995434022,-500.0,0.00018903,2]
[350615522,1737995434032,-500.0,0.00018903,2]
[350615523,1737995434041,-500.0,0.00018903,2]
[350615524,1737995434050,-500.0,0.00018903,2]
[350615525,1737995434060,-500.0,0.00018903,2]
[350615526,1737995434071,-457.21787566,0.00018903,2]
[350615527,1737995434080,-500.0,0.00018903,2]
[350615528,1737995434090,-500.0,0.00018903,2]
[350615529,1737995434100,-500.0,0.00018903,2]
[350615530,1737995434109,-500.0,0.00018903,2]
[350615531,1737995434118,-500.0,0.00018903,2]
[350615532,1737995434128,-500.0,0.00018903,2]
[350615533,1737995434137,-500.0,0.00018903,2]
[350615534,1737995434147,-500.0,0.00018903,2]
[350615535,1737995434156,-500.0,0.00018903,2]
[350615536,1737995434169,-500.0,0.00018903,2]
[350615537,1737995434179,-500.0,0.00018903,2]
[350615538,1737995434188,-500.0,0.00018903,2]
[350615539,1737995434197,-500.0,0.00018903,2]
[350615540,1737995434207,-500.0,0.00018903,2]
[350615541,1737995434217,-500.0,0.00018903,2]
[350615542,1737995434226,-500.0,0.00018903,2]
[350615543,1737995434236,-150.97027884,0.00018903,2]
[350615544,1737995434246,-500.0,0.00018903,2]
[350615545,1737995434256,-500.0,0.00018903,2]
[350615546,1737995434266,-500.0,0.00018903,2]
[350615547,1737995434276,-500.0,0.00018903,2]
[350615548,1737995434285,-500.0,0.00018903,2]
[350615549,1737995434295,-500.0,0.00018903,2]
[350615550,1737995434306,-1221.96,0.00018903,2]
[350615551,1737995434320,-500.0,0.00018903,2]
[350615552,1737995434330,-500.0,0.00018903,2]
[350615553,1737995434339,-500.0,0.00018903,2]
[350615554,1737995434350,-500.0,0.00018903,2]
[350615555,1737995434361,-500.0,0.00018903,2]
[350615556,1737995434371,-500.0,0.00018903,2]
[350615557,1737995434381,-500.0,0.00018903,2]
[350615558,1737995434391,-500.0,0.00018903,2]
[350615559,1737995434401,-291.81355963,0.00018903,2]
[350615560,1737995434412,-500.0,0.00018903,2]
[350615561,1737995434422,-500.0,0.00018903,2]
[350615562,1737995434431,-500.0,0.00018903,2]
[350615563,1737995434440,-500.0,0.00018904,2]
[350615564,1737995434451,-500.0,0.00018904,2]
[350615565,1737995434461,-500.0,0.00018904,2]
[350615566,1737995434471,-486.44250239,0.00018904,2]
[350615567,1737995434482,-500.0,0.00018904,2]
[350615568,1737995434492,-500.0,0.00018904,2]
[350615569,1737995434502,-500.0,0.00018904,2]
[350615570,1737995434513,-500.0,0.00018904,2]
[350615571,1737995434523,-500.0,0.00018904,2]
[350615572,1737995434534,-500.0,0.00018904,2]
[350615573,1737995434544,-500.0,0.00018904,2]
[350615574,1737995434554,-500.0,0.00018904,2]
[350615575,1737995434564,-500.0,0.00018904,2]
[350615576,1737995434573,-500.0,0.00018904,2]
[350615577,1737995434583,-500.0,0.00018904,2]
[350615578,1737995434592,-525.27279852,0.00018904,2]
[350615579,1737995434602,-500.0,0.00018904,2]
[350615580,1737995434611,-500.0,0.00018904,2]
[350615581,1737995434620,-500.0,0.00018904,2]
[350615582,1737995434630,-509.86829733,0.00018904,2]
[350615583,1737995434639,-500.0,0.00018904,2]
[350615584,1737995434648,-160.19100295,0.00018904,2]
[350615585,1737995434657,-500.0,0.00018904,2]
[350615586,1737995434668,-500.0,0.00018904,2]
[350615587,1737995434677,-500.0,0.00018904,2]
[350615588,1737995434686,-500.0,0.00018904,2]
[350615589,1737995434695,-500.0,0.00018904,2]
[350615590,1737995434705,-258.92923461,0.00018904,2]
[350615591,1737995434714,-500.0,0.00018904,2]
[350615592,1737995434723,-500.0,0.00018904,2]
[350615593,1737995434732,-500.0,0.00018904,2]
[350615594,1737995434742,-500.0,0.00018904,2]
[350615595,1737995434751,-500.0,0.00018904,2]
[350615596,1737995434760,-503.65076693,0.00018904,2]
[350615597,1737995434769,-310.10137333,0.00018904,2]
[350615598,1737995434778,-500.0,0.00018904,2]
[350615599,1737995434787,-500.0,0.00018904,2]
[350615600,1737995434796,-500.0,0.00018904,2]
[350615601,1737995434806,-500.0,0.00018904,2]
[350615602,1737995434816,-500.0,0.00018904,2]
[350615603,1737995434825,-500.0,0.00018904,2]
[350615604,1737995434835,-604.79939927,0.00018904,2]
[350615605,1737995434844,-500.0,0.00018904,2]
[350615606,1737995434854,-500.0,0.00018904,2]
[350615607,1737995434863,-500.0,0.00018904,2]
[350615608,1737995434873,-500.0,0.00018904,2]
[350615609,1737995434882,-500.0,0.00018904,2]
[350615610,1737995434892,-500.0,0.00018904,2]
[350615611,1737995434901,-500.0,0.00018904,2]
[350615612,1737995434912,-500.0,0.00018904,2]
[350615613,1737995434921,-500.0,0.00018904,2]
[350615614,1737995434931,-500.0,0.00018904,2]
[350615615,1737995434940,-500.0,0.00018904,2]
[350615616,1737995434959,-500.0,0.00018904,2]
[350615617,1737995434970,-500.0,0.00018904,2]
[350615618,1737995434979,-500.0,0.00018904,2]
[350615619,1737995434990,-500.0,0.00018904,2]
[350615620,1737995435000,-500.0,0.00018904,2]
[350615621,1737995435010,-500.0,0.00018904,2]
[350615622,1737995435020,-500.0,0.00018904,2]
[350615623,1737995435030,-500.0,0.00018904,2]
[350615624,1737995435040,-500.0,0.00018904,2]
[350615625,1737995435050,-500.0,0.00018904,2]
[350615626,1737995435059,-500.0,0.00018904,2]
[350615627,1737995435069,-500.0,0.00018904,2]
[350615628,1737995435079,-500.0,0.00018904,2]
[350615629,1737995435089,-500.0,0.00018904,2]
[350615630,1737995435098,-601.61471006,0.00018904,2]
[350615631,1737995435108,-540.05,0.00018904,2]
[350615632,1737995435117,-500.0,0.00018904,2]
[350615633,1737995435127,-500.0,0.00018904,2]
[350615634,1737995435137,-500.0,0.00018904,2]
[350615635,1737995435147,-501.57585974,0.00018904,2]
[350615636,1737995435156,-500.0,0.00018904,2]
[350615637,1737995435168,-500.0,0.00018904,2]
[350615638,1737995435178,-500.0,0.00018904,2]
[350615639,1737995435187,-632.14,0.00018904,2]
[350615640,1737995435197,-575.38803646,0.00018904,2]
[350615641,1737995435207,-500.0,0.00018904,2]
[350615642,1737995435217,-500.0,0.00018904,2]
[350615643,1737995435228,-400.28797742,0.00018904,2]
[350615644,1737995435238,-502.75365871,0.00018904,2]
[350615645,1737995435247,-500.0,0.00018904,2]
[350615646,1737995435257,-500.0,0.00018904,2]
[350615647,1737995435267,-500.0,0.00018904,2]
[350615648,1737995435276,-500.0,0.00018904,2]
[350615649,1737995435285,-500.0,0.00018904,2]
[350615650,1737995435295,-500.0,0.00018904,2]
[350615651,1737995435305,-500.0,0.00018904,2]
[350615652,1737995435318,-500.0,0.00018904,2]
[350615653,1737995435327,-500.0,0.00018904,2]
[350615654,1737995435337,-500.0,0.00018904,2]
[350615655,1737995435347,-500.0,0.00018904,2]
[350615656,1737995435357,-500.0,0.00018904,2]
[350615657,1737995435366,-500.0,0.00018904,2]
[350615658,1737995435376,-500.0,0.00018904,2]
[350615659,1737995435387,-500.0,0.00018904,2]
[350615660,1737995435397,-500.0,0.00018904,2]
[350615661,1737995435406,-500.0,0.00018904,2]
[350615662,1737995435418,-314.81900537,0.00018904,2]
[350615663,1737995435427,-500.0,0.00018904,2]
[350615664,1737995435437,-500.0,0.00018904,2]
[350615665,1737995435447,-500.0,0.00018904,2]
[350615666,1737995435456,-500.0,0.00018904,2]
[350615667,1737995435465,-500.0,0.00018904,2]
[350615668,1737995435475,-500.0,0.00018904,2]
[350615669,1737995435484,-304.72097405,0.00018904,2]
[350615674,1737995438682,-507.37905175,0.00018903,2]
[350615675,1737995438692,-195.27902595,0.00018904,2]
[350615676,1737995438701,-500.0,0.00018904,2]
[350615678,1737995438711,-500.0,0.00018904,2]
[350615680,1737995438721,-500.0,0.00018904,2]
[350615681,1737995438730,-500.0,0.00018904,2]
[350615682,1737995438740,-137.75631503,0.00018904,2]
[350615684,1737995438751,-362.24368497,0.00018904,2]
[350615686,1737995438761,-548.41407387,0.00018904,2]
[350615687,1737995438770,-500.0,0.00018904,2]
[350615688,1737995438780,-500.0,0.00018904,2]
[350615689,1737995438789,-500.0,0.00018904,2]
[350615690,1737995438799,-500.0,0.00018904,2]
[350615691,1737995438809,-504.89239055,0.00018904,2]
[350615692,1737995438819,-500.0,0.00018904,2]
[350615693,1737995438828,-500.0,0.00018904,2]
[350615694,1737995438837,-500.0,0.00018904,2]
[350615695,1737995438847,-500.0,0.00018904,2]
[350615696,1737995438856,-500.0,0.00018904,2]
[350615697,1737995438865,-500.0,0.00018904,2]
[350615698,1737995438875,-500.0,0.00018904,2]
[350615700,1737995438885,-500.0,0.00018904,2]
[350615702,1737995438894,-500.0,0.00018904,2]
[350615704,1737995438903,-500.0,0.00018904,2]
[350615706,1737995438913,-500.0,0.00018904,2]
[350615708,1737995438923,-500.0,0.00018904,2]
[350615710,1737995438932,-500.0,0.00018904,2]
[350615712,1737995438942,-500.0,0.00018904,2]
[350615715,1737995438951,-500.0,0.00018904,2]
[350615717,1737995438961,-500.0,0.00018904,2]
[350615718,1737995438970,-500.0,0.00018904,2]
[350615720,1737995438979,-1004.47444291,0.00018904,2]
[350615722,1737995438989,-500.2587,0.00018904,2]
[350615724,1737995438999,-503.6496915,0.00018904,2]
[350615726,1737995439008,-500.0,0.00018904,2]
[350615728,1737995439017,-500.0,0.00018904,2]
[350615730,1737995439027,-504.46739239,0.00018904,2]
[350615733,1737995439037,-500.0,0.00018904,2]
[350615736,1737995439047,-500.0,0.00018904,2]
[350615739,1737995439055,-406.62629281,0.00018904,2]
[350615760,1737995439151,-93.37370719,0.00018904,2]
[350615762,1737995439161,-500.0,0.00018904,2]
[350615764,1737995439172,-500.0,0.00018904,2]
[350615766,1737995439181,-500.0,0.00018904,2]
[350615768,1737995439190,-500.0,0.00018904,2]
[350615770,1737995439200,-500.0,0.00018904,2]
[350615772,1737995439210,-500.0,0.00018904,2]
[350615774,1737995439219,-477.68985929,0.00018904,2]
[350615938,1737995440779,-22.31014071,0.00018904,2]
[350615940,1737995440788,-500.0,0.00018904,2]
[350615942,1737995440798,-500.0,0.00018904,2]
[350615944,1737995440807,-503.52283972,0.00018904,2]
[350615946,1737995440817,-500.0,0.00018904,2]
[350615948,1737995440827,-500.0,0.00018904,2]
[350615950,1737995440836,-500.0,0.00018904,2]
[350615952,1737995440845,-500.0,0.00018904,2]
[350615954,1737995440855,-500.0,0.00018904,2]
[350615956,1737995440865,-500.0,0.00018904,2]
[350615958,1737995440875,-500.0,0.00018904,2]
[350615960,1737995440884,-500.0,0.00018904,2]
[350615962,1737995440893,-500.0,0.00018904,2]
[350615964,1737995440902,-535.21877951,0.00018904,2]
[350615966,1737995440912,-104.3284576,0.00018904,2]
[350616080,1737995442017,-168.7260009,0.00018904,2]
[350616269,1737995443720,-500.0,0.00016927,2]
[350616272,1737995443730,-186.36139767,0.00018904,2]
[350616275,1737995443740,-500.0,0.00018904,2]
[350616277,1737995443749,-500.0,0.00018904,2]
[350616280,1737995443760,-520.91713838,0.00018904,2]
[350616283,1737995443770,-500.0,0.00018904,2]
[350616286,1737995443779,-500.0,0.00018904,2]
[350616288,1737995443788,-500.0,0.00018904,2]
[350616290,1737995443798,-500.0,0.00018904,2]
[350616292,1737995443807,-500.0,0.00018904,2]
[350616295,1737995443816,-500.0,0.00018904,2]
[350616298,1737995443826,-500.0,0.00018904,2]
[350616301,1737995443835,-500.0,0.00018904,2]
[350616303,1737995443845,-500.0,0.00018905,2]
[350616305,1737995443854,-500.0,0.00018905,2]
[350616307,1737995443863,-412.01108078,0.00018905,2]